Workbook

Sheet IRArticle23T1
A1: Reporting on GHG projections per IPCC sector and gas 1.Member States shall report the information on projections of anthropogenic greenhouse gases emissions by sources and removals by sinks referred to in Article 14 of Regulation (EU) No 525/2013 in accordance with the tabular formats set out in Annex XII to this Regulation, using the reporting template provided and the submission process introduced by the Commission.
A3: suggested for use to report section 3. (2) of Annex I Part 2 of the provisionally agreed Energy Union Governance regulation text
A5: Instructions for MMR submission
A6: Yellow fields are mandatory reporting requirements under the MMR
A7: Unfold the template by clicking the framed '+' icons.
A8: Select your country in cell B15 and the base year of your projections in cell C17, other base year cells will be filled automatically.
A9: Fill the template with your data and press the button 'Export to XML' in cell C14.
A10: The xml-transformation will not work if you add rows or columns to this template.
A11: Don't add textual information in this template. The information will not reach us. Explain your data in your report.
A12: Upload the Excel and the xml file to the EIONET CDR.
A14: Submission Year | B14: 2019
A15: MS | B15: Select country
A16: Category (1,3) | B16: Scenario (WEM, WAM, WOM) | C16: CO2 (kt) | D16: CO2 (kt) | E16: CO2 (kt) | F16: CO2 (kt) | G16: CO2 (kt) | H16: CO2 (kt) | I16: CO2 (kt) | J16: CO2 (kt) | K16: CO2 (kt) | L16: CO2 (kt) | M16: CO2 (kt) | N16: CO2 (kt) | O16: CO2 (kt) | P16: CO2 (kt) | Q16: CO2 (kt) | R16: CO2 (kt) | S16: CO2 (kt) | T16: =N16 -> CO2 (kt) | U16: =O16 -> CO2 (kt) | V16: CO2 (kt) | W16: CO2 (kt) | X16: CO2 (kt) | Y16: =S16 -> CO2 (kt) | Z16: =T16 -> CO2 (kt) | AA16: =U16 -> CO2 (kt) | AB16: =V16 -> CO2 (kt) | AC16: =W16 -> CO2 (kt) | AD16: N2O (kt) | AE16: N2O (kt) | AF16: N2O (kt) | AG16: N2O (kt) | AH16: N2O (kt) | AI16: N2O (kt) | AJ16: N2O (kt) | AK16: N2O (kt) | AL16: N2O (kt) | AM16: N2O (kt) | AN16: N2O (kt) | AO16: N2O (kt) | AP16: N2O (kt) | AQ16: N2O (kt) | AR16: N2O (kt) | AS16: N2O (kt) | AT16: N2O (kt) | AU16: =AO16 -> N2O (kt) | AV16: =AP16 -> N2O (kt) | AW16: =AQ16 -> N2O (kt) | AX16: =AR16 -> N2O (kt) | AY16: =AS16 -> N2O (kt) | AZ16: =AT16 -> N2O (kt) | BA16: =AU16 -> N2O (kt) | BB16: =AV16 -> N2O (kt) | BC16: =AW16 -> N2O (kt) | BD16: =AX16 -> N2O (kt) | BE16: CH4 (kt) | BF16: CH4 (kt) | BG16: CH4 (kt) | BH16: CH4 (kt) | BI16: CH4 (kt) | BJ16: CH4 (kt) | BK16: CH4 (kt) | BL16: CH4 (kt) | BM16: CH4 (kt) | BN16: CH4 (kt) | BO16: CH4 (kt) | BP16: CH4 (kt) | BQ16: CH4 (kt) | BR16: CH4 (kt) | BS16: CH4 (kt) | BT16: CH4 (kt) | BU16: CH4 (kt) | BV16: =BP16 -> CH4 (kt) | BW16: =BQ16 -> CH4 (kt) | BX16: =BR16 -> CH4 (kt) | BY16: =BS16 -> CH4 (kt) | BZ16: =BT16 -> CH4 (kt) | CA16: =BU16 -> CH4 (kt) | CB16: =BV16 -> CH4 (kt) | CC16: =BW16 -> CH4 (kt) | CD16: =BX16 -> CH4 (kt) | CE16: =BY16 -> CH4 (kt) | CF16: HFC (kt CO2e) | CG16: HFC (kt CO2e) | CH16: HFC (kt CO2e) | CI16: HFC (kt CO2e) | CJ16: HFC (kt CO2e) | CK16: HFC (kt CO2e) | CL16: HFC (kt CO2e) | CM16: HFC (kt CO2e) | CN16: HFC (kt CO2e) | CO16: HFC (kt CO2e) | CP16: HFC (kt CO2e) | CQ16: HFC (kt CO2e) | CR16: HFC (kt CO2e) | CS16: HFC (kt CO2e) | CT16: HFC (kt CO2e) | CU16: HFC (kt CO2e) | CV16: HFC (kt CO2e) | CW16: =CQ16 -> HFC (kt CO2e) | CX16: =CR16 -> HFC (kt CO2e) | CY16: =CS16 -> HFC (kt CO2e) | CZ16: =CT16 -> HFC (kt CO2e) | DA16: =CU16 -> HFC (kt CO2e) | DB16: =CV16 -> HFC (kt CO2e) | DC16: =CW16 -> HFC (kt CO2e) | DD16: =CX16 -> HFC (kt CO2e) | DE16: =CY16 -> HFC (kt CO2e) | DF16: =CZ16 -> HFC (kt CO2e) | DG16: PFC (kt CO2e) | DH16: PFC (kt CO2e) | DI16: PFC (kt CO2e) | DJ16: PFC (kt CO2e) | DK16: PFC (kt CO2e) | DL16: PFC (kt CO2e) | DM16: PFC (kt CO2e) | DN16: PFC (kt CO2e) | DO16: PFC (kt CO2e) | DP16: PFC (kt CO2e) | DQ16: PFC (kt CO2e) | DR16: PFC (kt CO2e) | DS16: PFC (kt CO2e) | DT16: PFC (kt CO2e) | DU16: PFC (kt CO2e) | DV16: PFC (kt CO2e) | DW16: PFC (kt CO2e) | DX16: =DR16 -> PFC (kt CO2e) | DY16: =DS16 -> PFC (kt CO2e) | DZ16: =DT16 -> PFC (kt CO2e) | EA16: =DU16 -> PFC (kt CO2e) | EB16: =DV16 -> PFC (kt CO2e) | EC16: =DW16 -> PFC (kt CO2e) | ED16: =DX16 -> PFC (kt CO2e) | EE16: =DY16 -> PFC (kt CO2e) | EF16: =DZ16 -> PFC (kt CO2e) | EG16: =EA16 -> PFC (kt CO2e) | EH16: SF6 (kt CO2e) | EI16: SF6 (kt CO2e) | EJ16: SF6 (kt CO2e) | EK16: SF6 (kt CO2e) | EL16: SF6 (kt CO2e) | EM16: SF6 (kt CO2e) | EN16: SF6 (kt CO2e) | EO16: SF6 (kt CO2e) | EP16: SF6 (kt CO2e) | EQ16: SF6 (kt CO2e) | ER16: SF6 (kt CO2e) | ES16: SF6 (kt CO2e) | ET16: SF6 (kt CO2e) | EU16: SF6 (kt CO2e) | EV16: SF6 (kt CO2e) | EW16: SF6 (kt CO2e) | EX16: SF6 (kt CO2e) | EY16: =ES16 -> SF6 (kt CO2e) | EZ16: =ET16 -> SF6 (kt CO2e) | FA16: =EU16 -> SF6 (kt CO2e) | FB16: =EV16 -> SF6 (kt CO2e) | FC16: =EW16 -> SF6 (kt CO2e) | FD16: =EX16 -> SF6 (kt CO2e) | FE16: =EY16 -> SF6 (kt CO2e) | FF16: =EZ16 -> SF6 (kt CO2e) | FG16: =FA16 -> SF6 (kt CO2e) | FH16: =FB16 -> SF6 (kt CO2e) | FI16: NF3 (kt CO2e) | FJ16: NF3 (kt CO2e) | FK16: NF3 (kt CO2e) | FL16: NF3 (kt CO2e) | FM16: NF3 (kt CO2e) | FN16: NF3 (kt CO2e) | FO16: NF3 (kt CO2e) | FP16: NF3 (kt CO2e) | FQ16: NF3 (kt CO2e) | FR16: NF3 (kt CO2e) | FS16: NF3 (kt CO2e) | FT16: NF3 (kt CO2e) | FU16: NF3 (kt CO2e) | FV16: NF3 (kt CO2e) | FW16: NF3 (kt CO2e) | FX16: NF3 (kt CO2e) | FY16: NF3 (kt CO2e) | FZ16: =FT16 -> NF3 (kt CO2e) | GA16: =FU16 -> NF3 (kt CO2e) | GB16: =FV16 -> NF3 (kt CO2e) | GC16: =FW16 -> NF3 (kt CO2e) | GD16: =FX16 -> NF3 (kt CO2e) | GE16: =FY16 -> NF3 (kt CO2e) | GF16: =FZ16 -> NF3 (kt CO2e) | GG16: =GA16 -> NF3 (kt CO2e) | GH16: =GB16 -> NF3 (kt CO2e) | GI16: =GC16 -> NF3 (kt CO2e) | GJ16: Total GHGs (ktCO2e) | GK16: Total GHGs (ktCO2e) | GL16: Total GHGs (ktCO2e) | GM16: Total GHGs (ktCO2e) | GN16: Total GHGs (ktCO2e) | GO16: Total GHGs (ktCO2e) | GP16: Total GHGs (ktCO2e) | GQ16: Total GHGs (ktCO2e) | GR16: Total GHGs (ktCO2e) | GS16: Total GHGs (ktCO2e) | GT16: Total GHGs (ktCO2e) | GU16: Total GHGs (ktCO2e) | GV16: Total GHGs (ktCO2e) | GW16: Total GHGs (ktCO2e) | GX16: Total GHGs (ktCO2e) | GY16: Total GHGs (ktCO2e) | GZ16: Total GHGs (ktCO2e) | HA16: =GU16 -> Total GHGs (ktCO2e) | HB16: =GV16 -> Total GHGs (ktCO2e) | HC16: =GW16 -> Total GHGs (ktCO2e) | HD16: =GX16 -> Total GHGs (ktCO2e) | HE16: =GY16 -> Total GHGs (ktCO2e) | HF16: =GZ16 -> Total GHGs (ktCO2e) | HG16: =HA16 -> Total GHGs (ktCO2e) | HH16: =HB16 -> Total GHGs (ktCO2e) | HI16: =HC16 -> Total GHGs (ktCO2e) | HJ16: =HD16 -> Total GHGs (ktCO2e) | HK16: Total ETS GHGs (ktCO2e) | HL16: Total ETS GHGs (ktCO2e) | HM16: Total ETS GHGs (ktCO2e) | HN16: Total ETS GHGs (ktCO2e) | HO16: Total ETS GHGs (ktCO2e) | HP16: Total ETS GHGs (ktCO2e) | HQ16: Total ETS GHGs (ktCO2e) | HR16: Total ETS GHGs (ktCO2e) | HS16: Total ETS GHGs (ktCO2e) | HT16: Total ETS GHGs (ktCO2e) | HU16: Total ETS GHGs (ktCO2e) | HV16: Total ETS GHGs (ktCO2e) | HW16: Total ETS GHGs (ktCO2e) | HX16: Total ETS GHGs (ktCO2e) | HY16: Total ETS GHGs (ktCO2e) | HZ16: Total ETS GHGs (ktCO2e) | IA16: Total ETS GHGs (ktCO2e) | IB16: =HV16 -> Total ETS GHGs (ktCO2e) | IC16: =HW16 -> Total ETS GHGs (ktCO2e) | ID16: =HX16 -> Total ETS GHGs (ktCO2e) | IE16: =HY16 -> Total ETS GHGs (ktCO2e) | IF16: =HZ16 -> Total ETS GHGs (ktCO2e) | IG16: =IA16 -> Total ETS GHGs (ktCO2e) | IH16: =IB16 -> Total ETS GHGs (ktCO2e) | II16: =IC16 -> Total ETS GHGs (ktCO2e) | IJ16: =ID16 -> Total ETS GHGs (ktCO2e) | IK16: =IE16 -> Total ETS GHGs (ktCO2e) | IL16: Total ESD GHGs (ktCO2e) | IM16: Total ESD GHGs (ktCO2e) | IN16: Total ESD GHGs (ktCO2e) | IO16: Total ESD GHGs (ktCO2e) | IP16: Total ESD GHGs (ktCO2e) | IQ16: Total ESD GHGs (ktCO2e) | IR16: Total ESD GHGs (ktCO2e) | IS16: Total ESD GHGs (ktCO2e) | IT16: Total ESD GHGs (ktCO2e) | IU16: Total ESD GHGs (ktCO2e) | IV16: Total ESD GHGs (ktCO2e) | IW16: Total ESD GHGs (ktCO2e) | IX16: Total ESD GHGs (ktCO2e) | IY16: Total ESD GHGs (ktCO2e) | IZ16: Total ESD GHGs (ktCO2e) | JA16: Total ESD GHGs (ktCO2e) | JB16: =IV16 -> Total ESD GHGs (ktCO2e) | JC16: =IW16 -> Total ESD GHGs (ktCO2e) | JD16: =IX16 -> Total ESD GHGs (ktCO2e) | JE16: =IY16 -> Total ESD GHGs (ktCO2e) | JF16: =IZ16 -> Total ESD GHGs (ktCO2e) | JG16: =JA16 -> Total ESD GHGs (ktCO2e) | JH16: =JB16 -> Total ESD GHGs (ktCO2e) | JI16: =JC16 -> Total ESD GHGs (ktCO2e) | JJ16: =JD16 -> Total ESD GHGs (ktCO2e) | JK16: =JE16 -> Total ESD GHGs (ktCO2e)
C17: Select base year | D17: 2015 (base year)(1) | E17: 2016 | F17: 2017 | G17: 2018 | H17: 2019 | I17: 2020 | J17: 2021 | K17: 2022 | L17: 2023 | M17: 2024 | N17: 2025 | O17: 2026 | P17: 2027 | Q17: 2028 | R17: 2029 | S17: 2030 | T17: 2031 | U17: 2032 | V17: 2033 | W17: 2034 | X17: 2035 | Y17: 2036 | Z17: 2037 | AA17: 2038 | AB17: 2039 | AC17: 2040 | AD17: =$C$17 -> Select base year | AE17: 2015 (base year)(1) | AF17: 2016 | AG17: 2017 | AH17: 2018 | AI17: 2019 | AJ17: 2020 | AK17: 2021 | AL17: 2022 | AM17: 2023 | AN17: 2024 | AO17: 2025 | AP17: 2026 | AQ17: 2027 | AR17: 2028 | AS17: 2029 | AT17: 2030 | AU17: 2031 | AV17: 2032 | AW17: 2033 | AX17: 2034 | AY17: 2035 | AZ17: 2036 | BA17: 2037 | BB17: 2038 | BC17: 2039 | BD17: 2040 | BE17: =$C$17 -> Select base year | BF17: 2015 (base year)(1) | BG17: 2016 | BH17: 2017 | BI17: 2018 | BJ17: 2019 | BK17: 2020 | BL17: 2021 | BM17: 2022 | BN17: 2023 | BO17: 2024 | BP17: 2025 | BQ17: 2026 | BR17: 2027 | BS17: 2028 | BT17: 2029 | BU17: 2030 | BV17: 2031 | BW17: 2032 | BX17: 2033 | BY17: 2034 | BZ17: 2035 | CA17: 2036 | CB17: 2037 | CC17: 2038 | CD17: 2039 | CE17: 2040 | CF17: =$C$17 -> Select base year | CG17: 2015 (base year)(1) | CH17: 2016 | CI17: 2017 | CJ17: 2018 | CK17: 2019 | CL17: 2020 | CM17: 2021 | CN17: 2022 | CO17: 2023 | CP17: 2024 | CQ17: 2025 | CR17: 2026 | CS17: 2027 | CT17: 2028 | CU17: 2029 | CV17: 2030 | CW17: 2031 | CX17: 2032 | CY17: 2033 | CZ17: 2034 | DA17: 2035 | DB17: 2036 | DC17: 2037 | DD17: 2038 | DE17: 2039 | DF17: 2040 | DG17: =$C$17 -> Select base year | DH17: 2015 (base year)(1) | DI17: 2016 | DJ17: 2017 | DK17: 2018 | DL17: 2019 | DM17: 2020 | DN17: 2021 | DO17: 2022 | DP17: 2023 | DQ17: 2024 | DR17: 2025 | DS17: 2026 | DT17: 2027 | DU17: 2028 | DV17: 2029 | DW17: 2030 | DX17: 2031 | DY17: 2032 | DZ17: 2033 | EA17: 2034 | EB17: 2035 | EC17: 2036 | ED17: 2037 | EE17: 2038 | EF17: 2039 | EG17: 2040 | EH17: =$C$17 -> Select base year | EI17: 2015 (base year)(1) | EJ17: 2016 | EK17: 2017 | EL17: 2018 | EM17: 2019 | EN17: 2020 | EO17: 2021 | EP17: 2022 | EQ17: 2023 | ER17: 2024 | ES17: 2025 | ET17: 2026 | EU17: 2027 | EV17: 2028 | EW17: 2029 | EX17: 2030 | EY17: 2031 | EZ17: 2032 | FA17: 2033 | FB17: 2034 | FC17: 2035 | FD17: 2036 | FE17: 2037 | FF17: 2038 | FG17: 2039 | FH17: 2040 | FI17: =$C$17 -> Select base year | FJ17: 2015 (base year)(1) | FK17: 2016 | FL17: 2017 | FM17: 2018 | FN17: 2019 | FO17: 2020 | FP17: 2021 | FQ17: 2022 | FR17: 2023 | FS17: 2024 | FT17: 2025 | FU17: 2026 | FV17: 2027 | FW17: 2028 | FX17: 2029 | FY17: 2030 | FZ17: 2031 | GA17: 2032 | GB17: 2033 | GC17: 2034 | GD17: 2035 | GE17: 2036 | GF17: 2037 | GG17: 2038 | GH17: 2039 | GI17: 2040 | GJ17: =$C$17 -> Select base year | GK17: 2015 (base year)(1) | GL17: 2016 | GM17: 2017 | GN17: 2018 | GO17: 2019 | GP17: 2020 | GQ17: 2021 | GR17: 2022 | GS17: 2023 | GT17: 2024 | GU17: 2025 | GV17: 2026 | GW17: 2027 | GX17: 2028 | GY17: 2029 | GZ17: 2030 | HA17: 2031 | HB17: 2032 | HC17: 2033 | HD17: 2034 | HE17: 2035 | HF17: 2036 | HG17: 2037 | HH17: 2038 | HI17: 2039 | HJ17: 2040 | HK17: =$C$17 -> Select base year | HL17: 2015 (base year)(2) | HM17: 2016 | HN17: 2017 | HO17: 2018 | HP17: 2019 | HQ17: 2020 | HR17: 2021 | HS17: 2022 | HT17: 2023 | HU17: 2024 | HV17: 2025 | HW17: 2026 | HX17: 2027 | HY17: 2028 | HZ17: 2029 | IA17: 2030 | IB17: 2031 | IC17: 2032 | ID17: 2033 | IE17: 2034 | IF17: 2035 | IG17: 2036 | IH17: 2037 | II17: 2038 | IJ17: 2039 | IK17: 2040 | IL17: 2015 (base year)(3) | IM17: 2016 | IN17: 2017 | IO17: 2018 | IP17: 2019 | IQ17: 2020 | IR17: 2021 | IS17: 2022 | IT17: 2023 | IU17: 2024 | IV17: 2025 | IW17: 2026 | IX17: 2027 | IY17: 2028 | IZ17: 2029 | JA17: 2030 | JB17: 2031 | JC17: 2032 | JD17: 2033 | JE17: 2034 | JF17: 2035 | JG17: 2036 | JH17: 2037 | JI17: 2038 | JJ17: 2039 | JK17: 2040
A18: Total excluding LULUCF | B18: WEM | D18: 165029.8766 | I18: 141539.7159 | N18: 141242.8685 | S18: 132396.6688 | X18: 125805.9286 | AE18: 28.85700738 | AJ18: 26.45509051 | AO18: 26.26289504 | AT18: 26.12632644 | AY18: 25.9749937 | BF18: 737.4352356 | BK18: 723.0969572 | BP18: 694.8238387 | BU18: 668.8752522 | BZ18: 658.443089 | CG18: 2372.584574 | CL18: 1926.048176 | CQ18: 1353.233634 | CV18: 805.4361431 | DA18: 805.4361431 | DH18: 104.2203304 | DM18: 137.8374567 | DR18: 137.8374585 | DW18: 137.8374602 | EB18: 137.8374619 | EI18: 139.4904 | EN18: 115.8453945 | ES18: 37.95125834 | EX18: 37.95125834 | FC18: 37.95125834 | GK18: 194778.8474 | GP18: 169680.4878 | GU18: 167968.8295 | GZ18: 157885.4203 | HE18: 150988.7789 | HL18: 94095.371 | HQ18: 75514.98406 | HV18: 77235.13543 | IA18: 71504.51453 | IF18: 66724.17539 | IL18: =GK18-HL18 -> 100683.4764 | IQ18: 94165.50376 | IV18: =GU18-HV18 -> 90733.69409 | JA18: 86380.90575 | JF18: 84264.60347
A19: Total including LULUCF | B19: WEM | D19: 171557.6231 | I19: 147874 | N19: 147628.0444 | S19: 139207.9919 | X19: 132547.9082 | AE19: 28.85700738 | AJ19: 26.45509051 | AO19: 26.26289504 | AT19: 26.12632644 | AY19: 25.9749937 | BF19: 737.4352356 | BK19: 723.0969572 | BP19: 694.8238387 | BU19: 668.8752522 | BZ19: 658.443089 | CG19: 2372.584574 | CL19: 1926.048176 | CQ19: 1353.233634 | CV19: 805.4361431 | DA19: 805.4361431 | DH19: 104.2203304 | DM19: 137.8374567 | DR19: 137.8374585 | DW19: 137.8374602 | EB19: 137.8374619 | EI19: 139.4904 | EN19: 115.8453945 | ES19: 37.95125834 | EX19: 37.95125834 | FC19: 37.95125834 | GK19: 201436.3633 | GP19: 176014.3937 | GQ19: 175371.9794 | GR19: 176063.4594 | GS19: 175795.1003 | GT19: 175161.486 | GU19: 174354.0054 | GV19: 174565.7493 | GW19: 173750.1689 | GX19: 170794.8933 | GY19: 167525.0961 | GZ19: 164696.7433 | HE19: 157730.7584 | HL19: 94095.371 | HQ19: 75514.98406 | HV19: 77235.13543 | IA19: 71504.51453 | IF19: 66724.17539 | IL19: 107340.9923 | IQ19: 100499.4097 | IV19: 97118.86998 | JA19: 93192.22878 | JF19: 91006.58305
A20: 1. Energy | B20: WEM | D20: 158462.9528 | I20: 133948.674 | N20: 132983.8104 | S20: 123632.6907 | X20: 116648.1598 | AE20: 2.206418257 | AJ20: 1.99674918 | AO20: 2.001283716 | AT20: 2.005337298 | AY20: 2.009399575 | BF20: 92.88110351 | BK20: 111.3939799 | BP20: 105.4696831 | BU20: 92.73160144 | BZ20: 92.09624465 | GK20: 161442.493 | GP20: 137328.5548 | GU20: 136216.935 | GZ20: 126548.5713 | HE20: 119549.367 | HL20: 87735 | HQ20: 68343.30343 | HV20: 69414.39385 | IA20: 63189.28388 | IF20: 58015.5674 | IL20: 73707.49298 | IQ20: 68985.25137 | IV20: 66802.54113 | JA20: 63359.28739 | JF20: 61533.79962
A21: 1.A. Fuel combustion | B21: WEM | D21: 157426.0156 | I21: 131820.9424 | N21: 130945.3427 | S21: 121860.7485 | X21: 114911.8049 | AE21: 2.206418257 | AJ21: 1.99674918 | AO21: 2.001283716 | AT21: 2.005337298 | AY21: 2.009399575 | BF21: 66.90426701 | BK21: 83.73193711 | BP21: 81.53737978 | BU21: 72.01888844 | BZ21: 72.06775468 | GK21: 159756.1349 | GP21: 134509.2721 | GU21: 133580.1597 | GZ21: 124258.8113 | HE21: 117312.2998 | HL21: 85666.48271 | HQ21: 66233.55038 | HV21: 67393.78784 | IA21: 61434.85415 | IF21: 56296.67825 | IL21: 74089.65217 | IQ21: 68275.72168 | IV21: 66186.37189 | JA21: 62823.95712 | JF21: 61015.62155
A22: 1.A.1. Energy industries | B22: WEM | D22: 69421.91379 | I22: 49948.12899 | N22: 50917.86509 | S22: 45449.67226 | X22: 41863.79904 | AE22: 1.052068924 | AJ22: 0.4741032796 | AO22: 0.4741032796 | AT22: 0.4741032796 | AY22: 0.4741032796 | BF22: 4.470386234 | BK22: 7.690756862 | BP22: 7.690756862 | BU22: 7.690756862 | BZ22: 7.690756862 | GK22: 69847.18998 | GP22: 50281.68068 | GU22: 51251.41679 | GZ22: 45783.22396 | HE22: 42197.35074 | HL22: 64427.99689 | HQ22: 46055.18129 | HV22: 47044.05357 | IA22: 41685.81248 | IF22: 38135.91207 | IL22: 5419.193094 | IQ22: 4226.499399 | IV22: 4207.363219 | JA22: 4097.411475 | JF22: 4061.438677
A23: 1.A.1.a. Public electricity and heat production | B23: WEM | D23: 56023.80087 | I23: 38911.13829 | N23: 40647.55113 | S23: 35629.00875 | X23: 32532.80361 | AE23: 0.9878499326 | BF23: 2.668565038 | BK23: 7.690756862 | BP23: 7.690756862 | BU23: 7.690756862 | BZ23: 7.690756862 | GK23: =D23+(BF23*25)+AE23*298 -> 56384.89427 | GP23: 39103.40721 | GU23: 40839.82005 | GZ23: 35821.27767 | HE23: 32725.07253 | HL23: 52537.61873 | HQ23: 35622.31119 | HV23: 37245.36818 | IA23: 32226.18249 | IF23: 29122.0555 | IL23: 3847.275548 | IQ23: 3481.096014 | IV23: 3594.451873 | JA23: 3595.095179 | JF23: 3603.017033
A24: 1.A.1.b. Petroleum refining | B24: WEM | D24: 10129.40752 | I24: 9010.081626 | N24: 8695.639833 | S24: 8624.218427 | X24: 8283.325593 | AE24: 0.0298326997 | BF24: 0.6677711734 | GK24: =D24+(BF24*25)+AE24*298 -> 10154.99194 | GP24: 9010.081626 | GU24: 8695.639833 | GZ24: 8624.218427 | HE24: 8283.325593 | HL24: 9773.241162 | HQ24: 8998.276183 | HV24: 8684.246387 | IA24: 8612.91856 | IF24: 8272.472381 | IL24: 381.7507808 | IQ24: 11.80544292 | IV24: 11.39344614 | JA24: 11.29986637 | JF24: 10.85321216
A25: 1.A.1.c. Manufacture of solid fuels and other energy industries | B25: WEM | D25: 3268.705399 | I25: 2026.909074 | N25: 1574.674132 | S25: 1196.445084 | X25: 1047.669838 | AE25: 0.03438629163 | BF25: 1.134050023 | GK25: =D25+(BF25*25)+AE25*298 -> 3307.303765 | GP25: 2026.909074 | GU25: 1574.674132 | GZ25: 1196.445084 | HE25: 1047.669838 | HL25: 2117.137 | HQ25: 1434.59391 | HV25: 1114.43901 | IA25: 846.7114322 | IF25: 741.3841829 | IL25: 1190.166765 | IQ25: 592.3151647 | IV25: 460.2351225 | JA25: 349.7336519 | JF25: 306.2856551
A26: 1.A.2. Manufacturing industries and construction | B26: WEM | D26: 24728.26468 | I26: 23388.01593 | N26: 23658.76213 | S26: 22926.09593 | X26: 21033.87995 | BF26: 2.363109154 | BK26: 20.70510427 | BP26: 20.70510427 | BU26: 20.70510427 | BZ26: 20.70510427 | GK26: 24826.15344 | GP26: 23905.64354 | GU26: 24176.38974 | GZ26: 23443.72354 | HE26: 21551.50755 | HL26: 20343.86682 | HQ26: 19361.77924 | HV26: 19607.03395 | IA26: 19103.57519 | IF26: 17556.772 | IL26: 4482.286622 | IQ26: 4543.864302 | IV26: 4569.355785 | JA26: 4340.148353 | JF26: 3994.73555
A27: 1.A.3. Transport | B27: WEM | D27: 30038.29576 | I27: 29020.32112 | N27: 29134.80976 | S27: 28612.39544 | X27: 29119.729 | AE27: 0.8440105122 | AJ27: 0.9998304976 | AO27: 1.004365034 | AT27: 1.008418616 | AY27: 1.012480893 | BF27: 2.454986019 | BK27: 5.167119982 | BP27: 5.30197053 | BU27: 5.453836002 | BZ27: 5.688778941 | GK27: 30351.18554 | GP27: 29447.44861 | GU27: 29566.65981 | GZ27: 29049.25009 | HE27: 29563.66778 | IL27: =GK27 -> 30351.18554 | IQ27: 29447.44861 | IV27: 29566.65981 | JA27: 29049.25009 | JF27: 29563.66778
A28: 1.A.3.a. Domestic aviation | B28: WEM | D28: 30.610206 | I28: 38.635 | N28: 38.635 | S28: 38.635 | X28: 38.635 | AE28: 0.000855576 | BF28: 0.000213894 | GK28: =D28+(BF28*25)+AE28*298 -> 30.870515 | GP28: 38.635 | GU28: 38.635 | GZ28: 38.635 | HE28: 38.635 | IL28: =GK28 -> 30.870515 | IQ28: 38.635 | IV28: 38.635 | JA28: 38.635 | JF28: 38.635
A29: 1.A.3.b. Road transportation | B29: WEM | D29: 28706.92299 | I29: 27704.36825 | N29: 27807.28478 | S29: 27273.9686 | X29: 27756.82962 | AE29: 0.812574537 | BF29: 2.304208134 | GK29: =D29+(BF29*25)+AE29*298 -> 29006.6754 | GP29: 27704.36825 | GU29: 27807.28478 | GZ29: 27273.9686 | HE29: 27756.82962 | IL29: =GK29 -> 29006.6754 | IQ29: 27704.36825 | IV29: 27807.28478 | JA29: 27273.9686 | JF29: 27756.82962
A30: 1.A.3.c. Railways | B30: WEM | D30: 98.0866579 | I30: 72.814 | N30: 71.328 | S30: 68.356 | X30: 68.356 | AE30: 0.000781706889 | BF30: 0.005927943908 | GK30: =D30+(BF30*25)+AE30*298 -> 98.46780515 | GP30: 72.814 | GU30: 71.328 | GZ30: 68.356 | HE30: 68.356 | IL30: 98.46780515 | IQ30: 72.814 | IV30: 71.328 | JA30: 68.356 | JF30: 68.356
A31: 1.A.3.d. Domestic navigation | B31: WEM | D31: 1109.815905 | I31: 1204.503871 | N31: 1217.56198 | S31: 1231.435846 | X31: 1255.908377 | AE31: 0.02963669231 | BF31: 0.1446360475 | GK31: =D31+(BF31*25)+AE31*298 -> 1122.263541 | GP31: 1204.503871 | GU31: 1217.56198 | GZ31: 1231.435846 | HE31: 1255.908377 | IL31: 1122.263541 | IQ31: 1204.503871 | IV31: 1217.56198 | JA31: 1231.435846 | JF31: 1255.908377
A32: 1.A.3.e. Other transportation | B32: WEM | D32: 92.86
A33: 1.A.4. Other sectors | B33: WEM | D33: 33076.2814 | I33: 29464.47633 | N33: 27233.9057 | S33: 24872.58491 | X33: 22894.39688 | AE33: 0.1714779264 | AJ33: 0.5228154024 | AO33: 0.5228154024 | AT33: 0.5228154024 | AY33: 0.5228154024 | BF33: 57.60151613 | BK33: 50.168956 | BP33: 47.83954812 | BU33: 38.1691913 | BZ33: 37.9831146 | GK33: 34567.41972 | GP33: 30874.49922 | GU33: 28585.69339 | GZ33: 25982.61369 | HE33: 23999.77373 | HL33: 894.619 | HQ33: 816.5898564 | HV33: 742.7003188 | IA33: 645.4664816 | IF33: 603.9941831 | IL33: =GK33-HL33 -> 33672.80072 | IQ33: 30057.90937 | IV33: 27842.99307 | JA33: 25337.1472 | JF33: 23395.77955
A34: 1.A.4.a. Commercial/Institutional | B34: WEM | D34: 7764.101524 | I34: 7369.860974 | N34: 6587.92535 | S34: 6087.181057 | X34: 5682.133881 | AE34: 0.01913512831 | AJ34: 0.1568446207 | AO34: 0.1568446207 | AT34: 0.1568446207 | AY34: 0.1568446207 | BF34: 3.908673376 | BK34: 5.045398444 | BP34: 4.561170212 | BU34: 4.183158138 | BZ34: 4 | GK34: =D34+(BF34*25)+AE34*298 -> 7867.520626 | GP34: 7542.735632 | GU34: 6748.694302 | GZ34: 6238.499707 | HE34: 5828.873578 | HL34: 334.993 | HQ34: 320.7540107 | HV34: 282.946671 | IA34: 258.5963694 | IF34: 238.7792879 | IL34: =GK34-HL34 -> 7532.527626 | IQ34: 7221.981622 | IV34: 6465.747631 | JA34: 5979.903338 | JF34: 5590.09429
A35: 1.A.4.b. Residential | B35: WEM | D35: 16296.18889 | I35: 14047.19636 | N35: 13055.57546 | S35: 12151.18026 | X35: 10862.23735 | AE35: 0.1034709574 | AJ35: 0.3659707817 | AO35: 0.3659707817 | AT35: 0.3659707817 | AY35: 0.3659707817 | BF35: 17.24701825 | BK35: 19.47556916 | BP35: 19.47556916 | BU35: 19.47556916 | BZ35: 19.47556916 | GK35: =D35+(BF35*25)+AE35*298 -> 16758.19869 | GP35: 14643.14489 | GU35: 13651.52398 | GZ35: 12747.12879 | HE35: 11458.18587 | IL35: =GK35 -> 16758.19869 | IQ35: 14643.14489 | IV35: 13651.52398 | JA35: 12747.12879 | JF35: 11458.18587
A36: 1.A.4.c. Agriculture/Forestry/Fishing | B36: WEM | D36: 9015.990985 | I36: 8047.418995 | N36: 7590.404893 | S36: 6634.223593 | X36: 6350.025647 | AE36: 0.04887184069 | BF36: 36.4458245 | BK36: 25.64798839 | BP36: 23.80280874 | BU36: 14.510464 | BZ36: 14.50754544 | GK36: =D36+(BF36*25)+AE36*298 -> 9941.700406 | GP36: 8688.618705 | GU36: 8185.475112 | GZ36: 6996.985193 | HE36: 6712.714283 | HL36: 559.626 | HQ36: 495.8358457 | HV36: 459.7536478 | IA36: 386.8701122 | IF36: 365.2148952 | IL36: =GK36-HL36 -> 9382.074406 | IQ36: 8192.782859 | IV36: 7725.721464 | JA36: 6610.11508 | JF36: 6347.499388
A37: 1.A.5. Other | B37: WEM | D37: 161.2599368 | AE37: 2.569516738 | BF37: 0.3567367134 | GK37: 164.1861902
A38: 1.B. Fugitive emissions from fuels (4) | B38: WEM | D38: 1036.937192 | I38: 2127.731667 | N38: 2038.467667 | S38: 1771.942167 | X38: 1736.354967 | BF38: 25.9768365 | BK38: 27.66204283 | BP38: 23.93230332 | BU38: 20.712713 | BZ38: 20.02848997 | GK38: 1686.358105 | GP38: 2819.282738 | GU38: 2636.77525 | GZ38: 2289.759992 | HE38: 2237.067216 | HL38: 2068.999744 | HQ38: 2109.753051 | HV38: 2020.606009 | IA38: 1754.429723 | IF38: 1718.889151 | IL38: =GK38-HL38 -> -382.6416394 | IQ38: 709.529687 | IV38: 616.1692413 | JA38: 535.3302688 | JF38: 518.178065
A39: 1.C. CO2 transport and storage | B39: WEM
A40: 2. Industrial processes | B40: WEM | D40: 6498.206628 | I40: 7314.967933 | N40: 7982.984212 | S40: 8487.904217 | X40: 8881.694907 | AE40: 4.556702679 | AJ40: 4.36822112 | AO40: 4.439947487 | AT40: 4.534224634 | AY40: 4.630507471 | CG40: 2372.584574 | CL40: 1926.048176 | CQ40: 1353.233634 | CV40: 805.4361431 | DA40: 805.4361431 | DH40: 104.2203304 | DM40: 137.8374567 | DR40: 137.8374585 | DW40: 137.8374602 | EB40: 137.8374619 | EI40: 139.4904 | EN40: 115.8453945 | ES40: 37.95125834 | EX40: 37.95125834 | FC40: 37.95125834 | GK40: 10918.38395 | GP40: 10796.42885 | GU40: 10835.11091 | GZ40: 10820.32802 | HE40: 11242.811 | HL40: =HL41+HL44+HL45 -> 6758.896092 | HQ40: 7070.080798 | HV40: 7719.092773 | IA40: 8213.562288 | IF40: 8606.848303 | IL40: =GK40-HL40 -> 4159.487858 | IQ40: 3726.348056 | IV40: 3116.01814 | JA40: 2606.765732 | JF40: 2635.962693
A41: 2.A. Mineral Industry (4) | B41: WEM | D41: 1454.057214 | I41: 907.1683438 | N41: 907.1683438 | S41: 907.1683438 | X41: 907.1683438 | GK41: 1454.057214 | GP41: 907.1683438 | GU41: 907.1683438 | GZ41: 907.1683438 | HE41: 907.1683438 | HL41: 1156.592091 | HQ41: 736.6345713 | HV41: 738.8211864 | IA41: 741.4484221 | IF41: 744.021021 | IL41: =GK41-HL41 -> 297.4651224 | IQ41: 170.5337725 | IV41: 168.3471574 | JA41: 165.7199218 | JF41: 163.1473228
A42: 2.A. of which cement production | B42: WEM
A43: 2.A. of which other non cement production | B43: WEM
A44: 2.B. Chemical industry | B44: WEM | D44: 4654.21395 | I44: 4805.894639 | N44: 4799.596319 | S44: 4887.802524 | X44: 5008.204637 | AE44: 4.2693 | AJ44: 4.36822112 | AO44: 4.439947487 | AT44: 4.534224634 | AY44: 4.630507471 | GK44: 6490.364523 | GP44: 6107.624533 | GU44: 6122.70067 | GZ44: 6239.001465 | HE44: 6388.095863 | HL44: 4657.182137 | HQ44: 5081.820549 | HV44: 5077.826411 | IA44: 5169.379682 | IF44: 5294.689101 | IL44: =GK44-HL44 -> 1833.182385 | IQ44: 1025.803984 | IV44: 1044.874259 | JA44: 1069.621783 | JF44: 1093.406762
A45: 2.C. Metal industry (4) | B45: WEM | D45: 56.33 | I45: 1255.152436 | N45: 1923.12615 | S45: 2333.84578 | X45: 2605.901733 | DH45: 6.50267 | DM45: 6.502671729 | DR45: 6.502673456 | DW45: 6.502675185 | EB45: 6.502676912 | GK45: 62.83 | GP45: 1261.655108 | GU45: 1929.628824 | GZ45: 2340.348455 | HE45: 2612.40441 | HL45: 945.1218628 | HQ45: 1221.487883 | HV45: 1871.545815 | IA45: 2271.249497 | IF45: 2536.008614 | IL45: =GK45-HL45 -> -882.2918628 | IQ45: 40.16722537 | IV45: 58.08300871 | JA45: 69.09895766 | JF45: 76.39579599
A46: 2.C. of which Iron and steel production | B46: WEM
A47: 2.C. of which other non Iron and steel production | B47: WEM
A48: 2.D. Non-energy products from fuels and solvent use | B48: WEM | D48: 308.6376853 | I48: 320.6609494 | N48: 325.7408145 | S48: 330.7649716 | X48: 331.030578 | GK48: 308.9437212 | GP48: 320.6609494 | GU48: 325.7408145 | GZ48: 330.7649716 | HE48: 331.030578 | HQ48: 14.63262527 | HR48: 14.63005702 | HS48: 14.62786053 | HT48: 14.62618044 | HU48: 14.62389217 | HV48: 14.62190148 | HW48: 14.61964365 | HX48: 14.61811245 | HY48: 14.61661098 | HZ48: 14.61489222 | IA48: 14.61316021 | IF48: 14.60456599 | IL48: 308.9437212 | IQ48: 306.0283242 | IR48: 307.0468654 | IS48: 308.0650349 | IT48: 309.082688 | IU48: 310.1009493 | IV48: 311.118913 | IW48: 312.1260023 | IX48: 313.1323649 | IY48: 314.1386978 | IZ48: 315.145248 | JA48: 316.1518114 | JF48: 316.426012
A49: 2.E. Electronics industry | B49: WEM | CL49: 239.6913818 | CQ49: 239.6913818 | CV49: 239.6913818 | DA49: 239.6913818 | GK49: 85.46576037 | GP49: 239.6913818 | GU49: 239.6913818 | GZ49: 239.6913818 | HE49: 239.6913818 | IL49: 85.46576037 | IQ49: 239.6913818 | IR49: 239.6913818 | IS49: 239.6913818 | IT49: 239.6913818 | IU49: 239.6913818 | IV49: 239.6913818 | IW49: 239.6913818 | IX49: 239.6913818 | IY49: 239.6913818 | IZ49: 239.6913818 | JA49: 239.6913818 | JF49: 239.6913818
A50: 2.F. Product uses as substitutes for ODS | B50: WEM | CG50: 2224.100646 | CL50: 1686.356794 | CQ50: 1113.542252 | CV50: 565.7447613 | DA50: 565.7447613 | DM50: 131.334785 | DR50: 131.334785 | DW50: 131.334785 | EB50: 131.334785 | EN50: 115.8453945 | ES50: 37.95125834 | EX50: 37.95125834 | FC50: 37.95125834 | GK50: 2224.100646 | GP50: 1933.536974 | GU50: 1282.828295 | GZ50: 735.0308046 | HE50: 735.0308046 | IL50: 2224.100646 | IQ50: 1933.536974 | IR50: 1747.271943 | IS50: 1630.319911 | IT50: 1527.923391 | IU50: 1395.056595 | IV50: 1282.828295 | IW50: 1199.113621 | IX50: 1076.760462 | IY50: 940.1259673 | IZ50: 836.6942369 | JA50: 735.0308046 | JF50: 735.0308046
A51: 2.G. Other product manufacture and use | B51: WEM | D51: 24.696 | I51: 26.09156449 | N51: 27.35258389 | S51: 28.32259882 | X51: 29.38961523 | GK51: 268.395536 | GP51: 26.09156449 | GU51: 27.35258389 | GZ51: 28.32259882 | HE51: 29.38961523 | HQ51: 15.50517044 | HR51: 15.68339079 | HS51: 15.80220436 | HT51: 15.98042471 | HU51: 16.15864506 | HV51: 16.27745863 | HW51: 16.39627219 | HX51: 16.51508576 | HY51: 16.63389933 | HZ51: 16.75271289 | IA51: 16.87152646 | IF51: 17.52500108 | IL51: 268.395536 | IQ51: 10.58639405 | IR51: 10.69917817 | IS51: 10.77436759 | IT51: 10.88715172 | IU51: 10.99993585 | IV51: 11.07512526 | IW51: 11.15031468 | IX51: 11.2255041 | IY51: 11.30069352 | IZ51: 11.37588294 | JA51: 11.45107235 | JF51: 11.86461415
A52: 2.H. Other (please specify) | B52: WEM | GK52: 24.224592 | IL52: 24.224592
A53: 3. Agriculture | B53: WEM | D53: 68.71722719 | I53: 68.71722719 | N53: 68.71722719 | S53: 68.71722719 | X53: 68.71722719 | AE53: 21.16634928 | AJ53: 19.19463087 | AO53: 18.9261745 | AT53: 18.69127517 | AY53: 18.43959732 | BF53: 496.425638 | BK53: 521.2 | BP53: 520.4 | BU53: 523.6 | BZ53: 526.4 | GK53: 18786.93026 | GP53: 18818.71723 | GU53: 18718.71723 | GZ53: 18728.71723 | HE53: 18723.71723 | HQ53: 4.558947324 | HR53: 4.526166649 | HS53: 4.51446647 | HT53: 4.509996241 | HU53: 4.507013583 | HV53: 4.502515818 | HW53: 4.44638986 | HX53: 4.437455811 | HY53: 4.423698515 | HZ53: 4.404482187 | IA53: 4.386498015 | IF53: 4.344697887 | IL53: 18786.93026 | IQ53: 18814.15828 | IR53: 18794.19106 | IS53: 18774.20276 | IT53: 18754.20723 | IU53: 18734.21021 | IV53: 18714.21471 | IW53: 18716.27084 | IX53: 18718.27977 | IY53: 18720.29353 | IZ53: 18722.31275 | JA53: 18724.33073 | JF53: 18719.37253
A54: 3.A. Enteric fermentation | B54: WEM
A55: 3.B. Manure management | B55: WEM
A56: 3.C. Rice cultivation | B56: WEM
A57: 3.D. Agricultural soils | B57: WEM
A58: 3.E. Prescribed burning of savannahs | B58: WEM
A59: 3.F. Field burning of agricultural residues | B59: WEM
A60: 3.G. Liming | B60: WEM | D60: 68.71722719 | I60: 68.71722719 | N60: 68.71722719 | S60: 68.71722719 | X60: 68.71722719 | HQ60: 4.558947324 | HR60: 4.526166649 | HS60: 4.51446647 | HT60: 4.509996241 | HU60: 4.507013583 | HV60: 4.502515818 | HW60: 4.44638986 | HX60: 4.437455811 | HY60: 4.423698515 | HZ60: 4.404482187 | IA60: 4.386498015 | IF60: 4.344697887 | IQ60: -4.558947324 | IR60: -4.526166649 | IS60: -4.51446647 | IT60: -4.509996241 | IU60: -4.507013583 | IV60: -4.502515818 | IW60: -4.44638986 | IX60: -4.437455811 | IY60: -4.423698515 | IZ60: -4.404482187 | JA60: -4.386498015 | JF60: -4.344697887
A61: 3.H. Urea application | B61: WEM
A62: 3.I. Other carbon-containing fertilizers | B62: WEM
A63: 3.J. Other (please specify) | B63: WEM
A64: 4. Land Use, Land-Use Change and Forestry | B64: WEM | D64: 6527.74647 | I64: 6333.905926 | J64: 6490.233431 | K64: 6463.969047 | L64: 6437.704664 | M64: 6411.44028 | N64: 6385.175896 | O64: 6358.911512 | P64: 6472.014391 | Q64: 6585.117269 | R64: 6698.220148 | S64: 6811.323026 | X64: 6741.979585 | AE64: 129.4426909 | GK64: 6657.515893 | GP64: 6333.905926 | GQ64: 6490.233431 | GR64: 6463.969047 | GS64: 6437.704664 | GT64: 6411.44028 | GU64: 6385.175896 | GV64: 6358.911512 | GW64: 6472.014391 | GX64: 6585.117269 | GY64: 6698.220148 | GZ64: 6811.323026 | HE64: 6741.979585 | IL64: 6657.515893 | IQ64: 6333.905926 | IR64: 6490.233431 | IS64: 6463.969047 | IT64: 6437.704664 | IU64: 6411.44028 | IV64: 6385.175896 | IW64: 6358.911512 | IX64: 6472.014391 | IY64: 6585.117269 | IZ64: 6698.220148 | JA64: 6811.323026 | JF64: 6741.979585
A65: 4.A. Forest land | B65: WEM | D65: -2232.511753 | I65: -2608.132459 | J65: -2453.684685 | K65: -2481.828799 | L65: -2509.972914 | M65: -2538.117029 | N65: -2566.261143 | O65: -2594.405258 | P65: -2483.18211 | Q65: -2371.958963 | R65: -2260.735815 | S65: -2149.512667 | X65: -2228.254763 | AE65: 5.265420046 | GK65: -2226.974401 | GP65: -2608.132459 | GQ65: -2453.684685 | GR65: -2481.828799 | GS65: -2509.972914 | GT65: -2538.117029 | GU65: -2566.261143 | GV65: -2594.405258 | GW65: -2483.18211 | GX65: -2371.958963 | GY65: -2260.735815 | GZ65: -2149.512667 | HE65: -2228.254763 | IL65: -2226.974401 | IQ65: -2608.132459 | IR65: -2453.684685 | IS65: -2481.828799 | IT65: -2509.972914 | IU65: -2538.117029 | IV65: -2566.261143 | IW65: -2594.405258 | IX65: -2483.18211 | IY65: -2371.958963 | IZ65: -2260.735815 | JA65: -2149.512667 | JF65: -2228.254763
A66: 4.B. Cropland | B66: WEM | D66: 2687.314569 | I66: 2609.377673 | J66: 2610.595619 | K66: 2611.813564 | L66: 2613.03151 | M66: 2614.249456 | N66: 2615.467401 | O66: 2616.685347 | P66: 2617.903292 | Q66: 2619.121238 | R66: 2620.339183 | S66: 2621.557129 | X66: 2627.646857 | AE66: 78.39448363 | GK66: 2765.709053 | GP66: 2609.377673 | GQ66: 2610.595619 | GR66: 2611.813564 | GS66: 2613.03151 | GT66: 2614.249456 | GU66: 2615.467401 | GV66: 2616.685347 | GW66: 2617.903292 | GX66: 2619.121238 | GY66: 2620.339183 | GZ66: 2621.557129 | HE66: 2627.646857 | IL66: 2765.709053 | IQ66: 2609.377673 | IR66: 2610.595619 | IS66: 2611.813564 | IT66: 2613.03151 | IU66: 2614.249456 | IV66: 2615.467401 | IW66: 2616.685347 | IX66: 2617.903292 | IY66: 2619.121238 | IZ66: 2620.339183 | JA66: 2621.557129 | JF66: 2627.646857
A67: 4.C. Grassland | B67: WEM | D67: 4205.305027 | I67: 4280.857954 | J67: 4255.502613 | K67: 4230.147272 | L67: 4204.791931 | M67: 4179.43659 | N67: 4154.081249 | O67: 4128.725908 | P67: 4103.370567 | Q67: 4078.015226 | R67: 4052.659885 | S67: 4027.304544 | X67: 3900.527839 | AE67: 6.646886907 | GK67: 4212.006715 | GP67: 4280.857954 | GQ67: 4255.502613 | GR67: 4230.147272 | GS67: 4204.791931 | GT67: 4179.43659 | GU67: 4154.081249 | GV67: 4128.725908 | GW67: 4103.370567 | GX67: 4078.015226 | GY67: 4052.659885 | GZ67: 4027.304544 | HE67: 3900.527839 | IL67: 4212.006715 | IQ67: 4280.857954 | IR67: 4255.502613 | IS67: 4230.147272 | IT67: 4204.791931 | IU67: 4179.43659 | IV67: 4154.081249 | IW67: 4128.725908 | IX67: 4103.370567 | IY67: 4078.015226 | IZ67: 4052.659885 | JA67: 4027.304544 | JF67: 3900.527839
A68: 4.D. Wetlands | B68: WEM | D68: 60.64389725 | I68: 77.37456428 | J68: 79.61865833 | K68: 81.86275237 | L68: 84.10684642 | M68: 86.35094047 | N68: 88.59503451 | O68: 90.83912856 | P68: 93.08322261 | Q68: 95.32731665 | R68: 97.5714107 | S68: 99.81550475 | X68: 111.035975 | AE68: 3.190781136 | GK68: 63.83467839 | GP68: 77.37456428 | GQ68: 79.61865833 | GR68: 81.86275237 | GS68: 84.10684642 | GT68: 86.35094047 | GU68: 88.59503451 | GV68: 90.83912856 | GW68: 93.08322261 | GX68: 95.32731665 | GY68: 97.5714107 | GZ68: 99.81550475 | HE68: 111.035975 | IL68: 63.83467839 | IQ68: 77.37456428 | IR68: 79.61865833 | IS68: 81.86275237 | IT68: 84.10684642 | IU68: 86.35094047 | IV68: 88.59503451 | IW68: 90.83912856 | IX68: 93.08322261 | IY68: 95.32731665 | IZ68: 97.5714107 | JA68: 99.81550475 | JF68: 111.035975
A69: 4.E. Settlements | B69: WEM | D69: 1595.786655 | I69: 1731.810646 | J69: 1751.63742 | K69: 1771.464195 | L69: 1791.290969 | M69: 1811.117744 | N69: 1830.944518 | O69: 1850.771292 | P69: 1870.598067 | Q69: 1890.424841 | R69: 1910.251615 | S69: 1930.07839 | X69: 2029.212261 | AE69: 28.50845867 | GK69: 1624.295114 | GP69: 1731.810646 | GQ69: 1751.63742 | GR69: 1771.464195 | GS69: 1791.290969 | GT69: 1811.117744 | GU69: 1830.944518 | GV69: 1850.771292 | GW69: 1870.598067 | GX69: 1890.424841 | GY69: 1910.251615 | GZ69: 1930.07839 | HE69: 2029.212261 | IL69: 1624.295114 | IQ69: 1731.810646 | IR69: 1751.63742 | IS69: 1771.464195 | IT69: 1791.290969 | IU69: 1811.117744 | IV69: 1830.944518 | IW69: 1850.771292 | IX69: 1870.598067 | IY69: 1890.424841 | IZ69: 1910.251615 | JA69: 1930.07839 | JF69: 2029.212261
A70: 4.F. Other Land | B70: WEM | D70: 124.5239405 | I70: 139.7727596 | J70: 142.8882195 | K70: 146.0036795 | L70: 149.1191394 | M70: 152.2345994 | N70: 155.3500593 | O70: 158.4655192 | P70: 161.5809792 | Q70: 164.6964391 | R70: 167.811899 | S70: 170.927359 | X70: 186.5046586 | AE70: 7.436660477 | GK70: 131.960601 | GP70: 139.7727596 | GQ70: 142.8882195 | GR70: 146.0036795 | GS70: 149.1191394 | GT70: 152.2345994 | GU70: 155.3500593 | GV70: 158.4655192 | GW70: 161.5809792 | GX70: 164.6964391 | GY70: 167.811899 | GZ70: 170.927359 | HE70: 186.5046586 | IL70: 131.960601 | IQ70: 139.7727596 | IR70: 142.8882195 | IS70: 146.0036795 | IT70: 149.1191394 | IU70: 152.2345994 | IV70: 155.3500593 | IW70: 158.4655192 | IX70: 161.5809792 | IY70: 164.6964391 | IZ70: 167.811899 | JA70: 170.927359 | JF70: 186.5046586
A71: 4.G. Harvested wood products | B71: WEM | D71: 86.68413335 | I71: 102.844788 | J71: 103.6755859 | K71: 104.5063839 | L71: 105.3371819 | M71: 106.1679799 | N71: 106.9987779 | O71: 107.8295759 | P71: 108.6603739 | Q71: 109.4911719 | R71: 110.3219699 | S71: 111.1527679 | X71: 115.3067578 | GK71: 86.68413335 | GP71: 102.844788 | GQ71: 103.6755859 | GR71: 104.5063839 | GS71: 105.3371819 | GT71: 106.1679799 | GU71: 106.9987779 | GV71: 107.8295759 | GW71: 108.6603739 | GX71: 109.4911719 | GY71: 110.3219699 | GZ71: 111.1527679 | HE71: 115.3067578 | IL71: 86.68413335 | IQ71: 102.844788 | IR71: 103.6755859 | IS71: 104.5063839 | IT71: 105.3371819 | IU71: 106.1679799 | IV71: 106.9987779 | IW71: 107.8295759 | IX71: 108.6603739 | IY71: 109.4911719 | IZ71: 110.3219699 | JA71: 111.1527679 | JF71: 115.3067578
A72: 4.H. Other | B72: WEM
A73: 5. Waste | B73: WEM | AE73: 0.4931657185 | AJ73: 0.8954893384 | AO73: 0.8954893384 | AT73: 0.8954893384 | AY73: 0.8954893384 | BF73: 130.2760401 | BK73: 90.50297725 | BP73: 68.95415556 | BU73: 52.54365077 | BZ73: 39.94684438 | GK73: 3403.864387 | GP73: 2529.430254 | GU73: 1990.709712 | GZ73: 1580.447092 | HE73: 1265.526932 | IL73: 3403.864387 | IQ73: 2529.430254 | IV73: 1990.709712 | JA73: 1580.447092 | JF73: 1265.526932
A74: 5.A. Solid Waste Disposal | B74: WEM | BF74: 118.9619254 | BK74: 83.26105756 | BP74: 61.71223587 | BU74: 45.30173108 | BZ74: 32.70492469 | GK74: 2974.048135 | GP74: 2081.526439 | GU74: 1542.805897 | GZ74: 1132.543277 | HE74: 817.6231173 | IL74: 2974.048135 | IQ74: 2081.526439 | IV74: 1542.805897 | JA74: 1132.543277 | JF74: 817.6231173
A75: 5.B. Biological treatment of solid waste | B75: WEM | GK75: 149.2501251 | IL75: 149.2501251
A76: 5.C. Incineration and open burning of waste | B76: WEM | AE76: NO,IE | AJ76: 0.629516538 | AO76: 0.629516538 | AT76: 0.629516538 | AY76: 0.629516538 | GK76: NO,IE | GP76: 187.5959283 | GU76: 187.5959283 | GZ76: 187.5959283 | HE76: 187.5959283 | IL76: NO,IE | IQ76: 187.5959283 | IV76: 187.5959283 | JA76: 187.5959283 | JF76: 187.5959283
A77: 5.D. Wastewater treatment and discharge | B77: WEM | AE77: 0.2392585705 | AJ77: 0.2659728004 | AO77: 0.2659728004 | AT77: 0.2659728004 | AY77: 0.2659728004 | BF77: 8.370682921 | BK77: 7.24191969 | BP77: 7.24191969 | BU77: 7.24191969 | BZ77: 7.24191969 | GK77: 280.566127 | GP77: 260.3078868 | GU77: 260.3078868 | GZ77: 260.3078868 | HE77: 260.3078868 | IL77: 280.566127 | IQ77: 260.3078868 | IV77: 260.3078868 | JA77: 260.3078868 | JF77: 260.3078868
A78: 5.E. Other (please specify) | B78: WEM
A79: Memo items | B79: WEM
A80: M.International bunkers | B80: WEM
A81: M.IB.Aviation | B81: WEM
A82: M.IB.Navigation | B82: WEM
A83: M.CO2 emissions from biomass | B83: WEM
A84: M.CO2 captured | B84: WEM
A85: M.Long-term storage of C in waste disposal sites | B85: WEM
A86: M.Indirect N2O | B86: WEM
A87: M.Indirect CO2 | B87: WEM | D87: 227.1758428 | I87: 207.35668 | N87: 207.35668 | S87: 207.35668 | X87: 207.35668 | GK87: 227.1758428 | GP87: 207.35668 | GU87: 207.35668 | GZ87: 207.35668 | HE87: 207.35668 | HQ87: 97.04088111 | HV87: 97.14628432 | IA87: 97.28187253 | IF87: 97.41498521 | IL87: =GK87 -> 227.1758428 | IQ87: 110.3157989 | IV87: 110.2103956 | JA87: 110.0748074 | JF87: 109.9416948
A88: M.International aviation in the EU ETS | B88: WEM
A90: Notes
A91: (1) From the National Inventory Report (NIR) 2018
A92: (2) From the MMR 2017 submission on reporting on IR article 10
A93: (3) Difference between the NIR 2018 (national total) and the MMR 2017 (ETS)
A94: (4) In NIR 2018 a new allocation is applied; projections and ETS realisation values are based on former allocation methods. This results in negative ESD emissions for this categorie in 2015. | B94: WOM
A95: Total including LULUCF | B95: WOM
A96: 1. Energy | B96: WOM
A97: 1.A. Fuel combustion | B97: WOM
A98: 1.A.1. Energy industries | B98: WOM
A99: 1.A.1.a. Public electricity and heat production | B99: WOM
A100: 1.A.1.b. Petroleum refining | B100: WOM
A101: 1.A.1.c. Manufacture of solid fuels and other energy industries | B101: WOM
A102: 1.A.2. Manufacturing industries and construction | B102: WOM
A103: 1.A.3. Transport | B103: WOM
A104: 1.A.3.a. Domestic aviation | B104: WOM
A105: 1.A.3.b. Road transportation | B105: WOM
A106: 1.A.3.c. Railways | B106: WOM
A107: 1.A.3.d. Domestic navigation | B107: WOM
A108: 1.A.3.e. Other transportation | B108: WOM
A109: 1.A.4. Other sectors | B109: WOM
A110: 1.A.4.a. Commercial/Institutional | B110: WOM
A111: 1.A.4.b. Residential | B111: WOM
A112: 1.A.4.c. Agriculture/Forestry/Fishing | B112: WOM
A113: 1.A.5. Other | B113: WOM
A114: 1.B. Fugitive emissions from fuels | B114: WOM
A115: 1.B.1. Solid fuels | B115: WOM
A116: 1.B.2. Oil and natural gas and other emissions from energy production | B116: WOM
A117: 1.C. CO2 transport and storage | B117: WOM
A118: 2. Industrial processes | B118: WOM
A119: 2.A. Mineral Industry | B119: WOM
A120: 2.A. of which cement production | B120: WOM
A121: 2.A. of which other non cement production | B121: WOM
A122: 2.B. Chemical industry | B122: WOM
A123: 2.C. Metal industry | B123: WOM
A124: 2.C. of which Iron and steel production | B124: WOM
A125: 2.C. of which other non Iron and steel production | B125: WOM
A126: 2.D. Non-energy products from fuels and solvent use | B126: WOM
A127: 2.E. Electronics industry | B127: WOM
A128: 2.F. Product uses as substitutes for ODS(2) | B128: WOM
A129: 2.G. Other product manufacture and use | B129: WOM
A130: 2.H. Other (please specify) | B130: WOM
A131: 3. Agriculture | B131: WOM
A132: 3.A. Enteric fermentation | B132: WOM
A133: 3.B. Manure management | B133: WOM
A134: 3.C. Rice cultivation | B134: WOM
A135: 3.D. Agricultural soils | B135: WOM
A136: 3.E. Prescribed burning of savannahs | B136: WOM
A137: 3.F. Field burning of agricultural residues | B137: WOM
A138: 3.G. Liming | B138: WOM
A139: 3.H. Urea application | B139: WOM
A140: 3.I. Other carbon-containing fertilizers | B140: WOM
A141: 3.J. Other (please specify) | B141: WOM
A142: 4. Land Use, Land-Use Change and Forestry | B142: WOM
A143: 4.A. Forest land | B143: WOM
A144: 4.B. Cropland | B144: WOM
A145: 4.C. Grassland | B145: WOM
A146: 4.D. Wetlands | B146: WOM
A147: 4.E. Settlements | B147: WOM
A148: 4.F. Other Land | B148: WOM
A149: 4.G. Harvested wood products | B149: WOM
A150: 4.H. Other | B150: WOM
A151: 5. Waste | B151: WOM
A152: 5.A. Solid Waste Disposal | B152: WOM
A153: 5.B. Biological treatment of solid waste | B153: WOM
A154: 5.C. Incineration and open burning of waste | B154: WOM
A155: 5.D. Wastewater treatment and discharge | B155: WOM
A156: 5.E. Other (please specify) | B156: WOM
A157: Memo items | B157: WOM
A158: M.International bunkers | B158: WOM
A159: M.IB.Aviation | B159: WOM
A160: M.IB.Navigation | B160: WOM
A161: M.CO2 emissions from biomass | B161: WOM
A162: M.CO2 captured | B162: WOM
A163: M.Long-term storage of C in waste disposal sites | B163: WOM
A164: M.Indirect N2O | B164: WOM
A165: M.International aviation in the EU ETS | B165: WOM
A167: Total excluding LULUCF | B167: WAM
A168: Total including LULUCF | B168: WAM
A169: 1. Energy | B169: WAM
A170: 1.A. Fuel combustion | B170: WAM
A171: 1.A.1. Energy industries | B171: WAM
A172: 1.A.1.a. Public electricity and heat production | B172: WAM
A173: 1.A.1.b. Petroleum refining | B173: WAM
A174: 1.A.1.c. Manufacture of solid fuels and other energy industries | B174: WAM
A175: 1.A.2. Manufacturing industries and construction | B175: WAM
A176: 1.A.3. Transport | B176: WAM
A177: 1.A.3.a. Domestic aviation | B177: WAM
A178: 1.A.3.b. Road transportation | B178: WAM
A179: 1.A.3.c. Railways | B179: WAM
A180: 1.A.3.d. Domestic navigation | B180: WAM
A181: 1.A.3.e. Other transportation | B181: WAM
A182: 1.A.4. Other sectors | B182: WAM
A183: 1.A.4.a. Commercial/Institutional | B183: WAM
A184: 1.A.4.b. Residential | B184: WAM
A185: 1.A.4.c. Agriculture/Forestry/Fishing | B185: WAM
A186: 1.A.5. Other | B186: WAM
A187: 1.B. Fugitive emissions from fuels | B187: WAM
A188: 1.B.1. Solid fuels | B188: WAM
A189: 1.B.2. Oil and natural gas and other emissions from energy production | B189: WAM
A190: 1.C. CO2 transport and storage | B190: WAM
A191: 2. Industrial processes | B191: WAM
A192: 2.A. Mineral Industry | B192: WAM
A193: 2.A. of which cement production | B193: WAM
A194: 2.A. of which other non cement production | B194: WAM
A195: 2.B. Chemical industry | B195: WAM
A196: 2.C. Metal industry | B196: WAM
A197: 2.C. of which Iron and steel production | B197: WAM
A198: 2.C. of which other non Iron and steel production | B198: WAM
A199: 2.D. Non-energy products from fuels and solvent use | B199: WAM
A200: 2.E. Electronics industry | B200: WAM
A201: 2.F. Product uses as substitutes for ODS(2) | B201: WAM
A202: 2.G. Other product manufacture and use | B202: WAM
A203: 2.H. Other (please specify) | B203: WAM
A204: 3. Agriculture | B204: WAM
A205: 3.A. Enteric fermentation | B205: WAM
... 38 more rows

Sheet List (hidden)
B1: Select country | C1: Select base year
A2: Austria | B2: AT | C2: 2008
A3: Belgium | B3: BE | C3: 2009
A4: Bulgaria | B4: BG | C4: 2010
A5: Switzerland | B5: CH | C5: 2011
A6: Cyprus | B6: CY | C6: 2012
A7: Czech Republic | B7: CZ | C7: 2013
A8: Germany | B8: DE | C8: 2014
A9: Denmark | B9: DK | C9: 2015
A10: Estonia | B10: EE | C10: 2016
A11: Spain | B11: ES | C11: 2017
A12: Finland | B12: FI | C12: 2018
A13: France | B13: FR | C13: 2019
A14: United Kingdom | B14: GB
A15: Greece | B15: GR
A16: Croatia | B16: HR
A17: Hungary | B17: HU
A18: Ireland | B18: IE
A19: Iceland | B19: IS
A20: Italy | B20: IT
A21: Liechtenstein | B21: LI
A22: Lithuania | B22: LT
A23: Luxembourg | B23: LU
A24: Latvia | B24: LV
A25: Malta | B25: MT
A26: Netherlands | B26: NL
A27: Norway | B27: NO
A28: Poland | B28: PL
A29: Portugal | B29: PT
A30: Romania | B30: RO
A31: Sweden | B31: SE
A32: Slovenia | B32: SI
A33: Slovakia | B33: SK
A34: Turkey | B34: TR

Sheet updates 2019 (hidden)
A1: Last update: Magdalena Jozwicka, EEA, July 2018
A3: FYI: update February 2018
A4: Added multiple notation keys in the xml schema as it was missing in the 2017 version.
A5: Updated base year
A6: update July 2019
A7: Updated base year
